bitfinex/quotes_SOLUSD_20250402
["timestamp","ask_amount","ask_price","bid_price","bid_amount"]
[1743564423149,36.93143236,124.76,124.75,0.0001]
[1743564427857,37.2157555,124.76,124.75,0.0001]
[1743564431774,36.93143236,124.76,124.75,0.0001]
[1743564432573,37.2157555,124.76,124.75,0.0001]
[1743564436456,36.93143236,124.76,124.75,0.0001]
[1743564436965,8.0783,124.76,124.75,0.0001]
[1743564437272,18.2817835,124.76,124.75,0.0001]
[1743564437653,36.93143236,124.76,124.75,0.0001]
[1743564460396,0.063,124.76,124.75,6.2924]
[1743564460691,0.063,124.76,124.75,13.2524]
[1743564460866,0.063,124.76,124.75,14.8612]
[1743564461364,8.0783,124.76,124.75,13.2524]
[1743564461564,18.2817835,124.76,124.75,0.0001]
[1743564461765,36.93143236,124.76,124.75,0.0001]
[1743564470100,37.2157555,124.76,124.75,0.0001]
[1743564474397,37.07359393,124.76,124.75,0.0001]
[1743564474587,36.93143236,124.76,124.75,0.0001]
[1743564482200,8.0783,124.76,124.75,0.0001]
[1743564482999,0.063,124.76,124.75,0.0001]
[1743564491114,99.41264886,124.76,124.75,0.0001]
[1743564491291,109.61613236,124.76,124.75,0.0001]
[1743564491897,90.9664835,124.76,124.75,0.0001]
[1743564494214,98.9817835,124.76,124.75,0.0001]
[1743564496421,8.0783,124.76,124.75,0.0001]
[1743564503364,36.93143236,124.76,124.75,0.0001]
[1743564506434,26.72794886,124.76,124.75,0.0001]
[1743564506632,36.93143236,124.76,124.75,0.0001]
[1743564509552,18.2817835,124.76,124.75,0.0001]
[1743564509744,8.0783,124.76,124.75,0.0001]
[1743564509948,18.2817835,124.76,124.75,0.0001]
[1743564510254,8.0783,124.76,124.75,0.0001]
[1743564510459,18.2817835,124.76,124.75,0.0001]
[1743564512660,8.0783,124.76,124.75,0.0001]
[1743564513655,18.2817835,124.76,124.75,0.0001]
[1743564516067,8.0783,124.76,124.75,0.0001]
[1743564521662,0.063,124.76,124.75,0.0001]
[1743564522774,0.063,124.76,124.75,7.8916]
[1743564531354,0.063,124.76,124.75,26.825572]
[1743564536996,0.063,124.76,124.75,7.8916]
[1743564548409,0.063,124.76,124.75,0.0001]
[1743564549389,10.2664835,124.76,124.75,0.0001]
[1743564550188,18.2817835,124.76,124.75,0.0001]
[1743564550983,8.0783,124.76,124.75,0.0001]
[1743564552607,0.063,124.76,124.75,0.0001]
[1743564553502,0.063,124.76,124.75,74.80373066]
[1743564553712,0.063,124.82,124.78,20.0]
[1743564553892,0.063,124.82,124.8,0.28432314]
[1743564554092,0.063,124.82,124.8,93.73760266]
[1743564554401,0.063,124.82,124.81,26.946072]
[1743564556515,0.063,124.82,124.81,6.94]
[1743564558192,0.063,124.82,124.77,6.27931282]
[1743564558399,0.063,124.82,124.77,13.21931282]
[1743564558599,8.0121,124.81,124.77,6.94]
[1743564560619,8.0745,124.82,124.77,6.94]
[1743564561403,28.1033,124.82,124.77,6.94]
[1743564564227,38.3067835,124.82,124.77,6.94]
[1743564564811,10.2034835,124.81,124.77,6.94]
[1743564565011,10.2034835,124.81,124.75,75.0880538]
[1743564565213,10.2034835,124.81,124.76,6.94]
[1743564566223,8.0141,124.78,124.75,6.9401]
[1743564567428,8.0141,124.78,124.75,0.0001]
[1743564567835,28.0493,124.78,124.75,0.0001]
[1743564568637,8.0141,124.78,124.75,0.0001]
[1743564570426,8.0134,124.79,124.75,0.0001]
[1743564573307,30.2955835,124.82,124.75,0.0001]
[1743564573537,8.0121,124.81,124.75,0.28442314]
[1743564574512,8.0745,124.82,124.76,18.64964886]
[1743564578143,18.2779835,124.82,124.76,18.64964886]
[1743564579145,18.2779835,124.82,124.75,74.80373066]
[1743564579333,10.2034835,124.81,124.75,74.80373066]
[1743564579521,28.1033,124.82,124.75,74.80373066]
[1743564579724,38.3067835,124.82,124.75,74.80373066]
[1743564580255,28.1033,124.82,124.75,74.80373066]
[1743564580551,38.3067835,124.82,124.75,74.80373066]
[1743564582049,38.3067835,124.82,124.75,82.81973066]
[1743564582652,38.3067835,124.82,124.76,18.933972]
[1743564582842,8.0745,124.82,124.76,18.933972]
[1743564584246,8.0745,124.82,124.76,26.949272]
[1743564587055,0.063,124.82,124.78,18.933972]
[1743564587227,0.063,124.82,124.79,6.94]
[1743564588541,0.063,124.82,124.79,14.9531]
[1743564592553,0.063,124.82,124.8,18.933972]
[1743564593753,0.063,124.82,124.8,26.946672]
[1743564594127,0.063,124.82,124.8,18.933972]
[1743564595157,0.063,124.82,124.79,81.74363066]
[1743564596253,0.063,124.82,124.79,89.75693066]
[1743564604154,0.063,124.82,124.8,26.946172]
[1743564605361,0.063,124.82,124.8,101.74980266]
[1743564605669,0.063,124.84,124.83,38.933972]
[1743564605965,0.063,124.84,124.83,120.67760266]
[1743564606167,0.063,124.86,124.83,120.67760266]
[1743564606355,0.063,124.86,124.84,38.933972]
[1743564606873,0.063,124.86,124.83,74.80363066]
[1743564607054,0.063,124.86,124.84,6.94]
[1743564607254,0.063,124.86,124.83,6.94]
[1743564610162,0.063,124.86,124.83,10.88009124]
[1743564611250,0.063,124.86,124.83,6.94]
[1743564616682,8.0102,124.84,124.83,6.94]
[1743564618881,8.0102,124.84,124.8,6.94]
[1743564620706,8.0102,124.84,124.8,10.87689436]
[1743564620904,8.0102,124.84,124.8,6.94]
[1743564623294,8.0102,124.84,124.8,10.99734422]
[1743564625401,8.0102,124.84,124.8,6.94]
[1743564625598,28.0358,124.84,124.8,6.94]
[1743564627507,28.0358,124.84,124.8,0.03]
[1743564630306,38.2392835,124.84,124.8,0.03]
[1743564631306,10.2034835,124.83,124.8,0.03]
[1743564631492,18.2155835,124.81,124.8,0.03]
[1743564631805,58.7115555,124.81,124.77,0.03]
[1743564631997,10.2034835,124.78,124.77,0.03]
[1743564634295,18.2175835,124.78,124.77,0.03]
[1743564636506,8.0141,124.78,124.77,0.03]
[1743564637610,18.2175835,124.78,124.77,0.03]
[1743564638194,8.0141,124.78,124.77,0.03]
[1743564638395,1.5316,124.81,124.77,0.03]
[1743564638695,9.5438,124.81,124.77,0.03]
[1743564640415,19.7472835,124.81,124.77,0.03]
[1743564640622,10.2034835,124.8,124.77,0.03]
[1743564641014,10.2034835,124.79,124.77,0.03]
[1743564641817,8.0141,124.78,124.77,0.03]
[1743564646922,8.0141,124.78,124.74,6.94]
[1743564647425,19.7472835,124.81,124.75,0.28432314]
[1743564647720,0.063,124.84,124.77,0.28432314]
[1743564647917,0.063,124.84,124.8,8.0128]
[1743564648536,0.063,124.84,124.81,0.28432314]
[1743564648704,0.063,124.84,124.82,6.94]
[1743564650610,10.2664835,124.84,124.79,6.94]
[1743564650810,0.063,124.84,124.79,6.94]
[1743564654027,0.063,124.84,124.79,14.953]
[1743564656016,0.063,124.84,124.8,18.933972]
[1743564657028,0.063,124.84,124.8,38.933972]
[1743564657333,0.063,124.84,124.82,18.933972]
[1743564657533,0.063,124.84,124.83,6.94]
[1743564663740,0.063,124.84,124.83,14.9508]
[1743564665128,0.063,124.84,124.83,6.94]
[1743564668136,0.063,124.84,124.83,33.884772]
[1743564668350,0.063,124.86,124.84,18.933972]
[1743564668923,0.063,124.86,124.84,25.43582656]
[1743564669135,0.063,124.86,124.84,100.23945722]
[1743564669445,0.063,124.86,124.85,8.0096]
[1743564672441,0.063,124.86,124.85,82.81323066]
[1743564672850,0.063,124.86,124.85,90.79983066]
[1743564673149,0.063,124.86,124.85,109.73380266]
[1743564677050,0.063,124.89,124.86,38.933972]
[1743564677258,0.063,124.89,124.88,38.933972]
[1743564677554,0.063,124.91,124.9,38.933972]
[1743564677730,0.063,124.95,124.91,18.933972]
[1743564677931,0.063,124.95,124.93,18.933972]
[1743564680659,0.063,124.95,124.91,74.80363066]
[1743564680857,0.063,124.95,124.92,6.92]
[1743564681068,19.8881835,124.95,124.92,6.92]
[1743564681233,19.8881835,124.95,124.9,10.97219339]
[1743564681932,19.8881835,124.95,124.9,6.92]
[1743564682132,19.8881835,124.95,124.91,6.92]
[1743564682648,10.2034835,124.94,124.91,6.92]
[1743564683457,8.0044,124.93,124.91,6.92]
[1743564683755,28.0156,124.93,124.87,81.11943066]
[1743564683936,38.2190835,124.93,124.88,6.92]
[1743564684455,8.0044,124.93,124.88,25.56964886]
[1743564685560,8.0044,124.93,124.88,6.92]
[1743564685747,8.0044,124.93,124.88,25.56964886]
[1743564687281,38.2820835,124.93,124.88,6.92]
[1743564687664,38.2820835,124.93,124.87,78.71390759]
[1743564687665,10.2034835,124.92,124.87,78.71390759]
[1743564687842,10.2034835,124.91,124.87,6.92]
[1743564688045,11.7426835,124.9,124.86,6.92]
[1743564688552,11.7426835,124.9,124.84,74.80363066]
[1743564688752,11.7426835,124.9,124.85,6.92]
[1743564689166,1.5392,124.9,124.85,10.91903945]
[1743564692072,1.5392,124.9,124.85,29.56868831]
[1743564695971,9.5456,124.9,124.85,29.56868831]
[1743564698768,9.5456,124.9,124.85,10.91903945]
[1743564698974,9.5456,124.9,124.85,29.56868831]
[1743564699864,9.5456,124.9,124.85,29.59868831]
[1743564700348,9.5456,124.9,124.85,10.94903945]
[1743564700755,19.7490835,124.9,124.85,4.02903945]
[1743564700971,19.7490835,124.9,124.85,10.94903945]
[1743564701888,9.5456,124.9,124.85,0.03]
[1743564702173,18.2123835,124.86,124.85,0.03]
[1743564702760,19.8275835,124.86,124.85,0.03]
[1743564703058,19.8275835,124.86,124.8,6.92]
[1743564703059,66.8695175,124.86,124.8,6.92]
[1743564703271,10.2034835,124.83,124.8,6.92]
[1743564703999,10.2034835,124.84,124.77,26.66404886]
[1743564704296,8.0108,124.83,124.78,6.92]
[1743564705879,8.0108,124.83,124.77,12.10276016]
[1743564706174,10.2034835,124.83,124.78,6.92]
[1743564707365,18.2144835,124.83,124.78,6.92]
[1743564707561,8.0104,124.84,124.78,6.92]
[1743564707759,8.0098,124.85,124.79,18.933972]
[1743564707961,9.6244,124.86,124.79,18.933972]
[1743564709497,9.6244,124.86,124.79,26.946772]
[1743564710195,19.8278835,124.86,124.79,26.946772]
[1743564711575,19.8908835,124.86,124.79,26.946772]
[1743564712184,9.6874,124.86,124.81,8.0121]
[1743564712362,9.6874,124.86,124.82,6.92]
[1743564712965,0.063,124.86,124.82,6.92]
[1743564714188,0.063,124.86,124.82,14.931]
[1743564715386,10.2664835,124.86,124.81,74.80363066]
[1743564715585,10.2664835,124.86,124.81,81.72363066]
[1743564716393,0.063,124.86,124.81,6.92]
[1743564717694,0.063,124.86,124.81,14.9321]
[1743564718100,0.063,124.86,124.82,18.933972]
[1743564718393,0.063,124.86,124.85,20.0]
[1743564718581,0.063,124.93,124.86,18.933972]
[1743564718890,0.063,124.93,124.86,93.73760266]
[1743564720073,0.063,124.93,124.88,18.933972]
[1743564720394,0.063,124.93,124.89,6.92]
[1743564722692,0.063,124.93,124.89,14.9268]
[1743564722896,0.063,124.93,124.9,18.933972]
[1743564723302,0.063,124.93,124.89,14.9268]
[1743564723973,0.063,124.93,124.89,6.92]
[1743564724586,0.063,124.93,124.88,74.80363066]
[1743564724785,0.063,124.93,124.89,6.92]
[1743564725191,16.05467278,124.93,124.89,6.92]
[1743564725387,8.0051,124.92,124.88,74.80363066]
[1743564725589,8.0051,124.92,124.88,81.72363066]
[1743564726197,23.99677278,124.92,124.88,6.92]
[1743564726400,16.05467278,124.91,124.88,6.92]
[1743564726698,16.05467278,124.91,124.86,249.8]
[1743564726889,16.05467278,124.91,124.86,256.72]
[1743564727620,15.99167278,124.89,124.83,74.80363066]
[1743564727796,15.99167278,124.88,124.83,6.92]
[1743564728095,17.58417278,124.88,124.83,6.92]
[1743564729392,15.99167278,124.87,124.83,6.92]
[1743564729599,8.0096,124.85,124.83,6.92]
[1743564730191,24.00127278,124.85,124.81,6.92]
[1743564731108,24.00127278,124.85,124.79,256.0695]
[1743564731296,24.00127278,124.85,124.79,262.9895]
[1743564731782,24.00127278,124.85,124.8,6.92]
[1743564732721,24.00077278,124.86,124.8,6.92]
[1743564732894,8.0091,124.86,124.8,25.56964886]
[1743564733097,104.70007278,124.87,124.8,25.56964886]
[1743564733610,104.70007278,124.87,124.81,8.0121]
[1743564733789,104.70007278,124.87,124.8,26.66214886]
[1743564733998,104.70007278,124.87,124.79,249.76]
[1743564733999,15.99167278,124.85,124.79,14.9332]
[1743564734324,15.99167278,124.85,124.8,0.03]
[1743564735325,15.99167278,124.84,124.8,0.03]
[1743564735724,8.0104,124.84,124.8,0.03]
[1743564738220,24.00207278,124.84,124.8,0.03]
[1743564739004,8.0104,124.84,124.8,0.03]
[1743564741203,24.00147278,124.85,124.8,0.03]
[1743564741602,8.0098,124.85,124.8,0.03]
[1743564743327,15.99167278,124.85,124.8,0.03]
[1743564744010,15.99167278,124.84,124.8,0.03]
[1743564744918,8.0108,124.83,124.8,0.03]
[1743564745619,24.00247278,124.83,124.8,0.03]
[1743564746317,25.63557278,124.83,124.8,0.03]
[1743564749833,19.89859684,124.83,124.8,0.03]
[1743564752007,1.6331,124.83,124.8,0.03]
[1743564752228,8.0104,124.84,124.8,0.03]
[1743564755335,88.7099,124.85,124.8,0.03]
[1743564761332,98.96459684,124.85,124.8,0.03]
[1743564762133,10.25469684,124.84,124.8,0.03]
[1743564762335,11.92119684,124.81,124.8,0.03]
[1743564763439,19.93329684,124.81,124.8,0.03]
[1743564763947,9.6786,124.81,124.8,0.03]
[1743564767448,8.0118,124.82,124.8,0.03]
[1743564769734,8.0111,124.83,124.8,0.03]
[1743564772055,18.26579684,124.83,124.8,0.03]
[1743564779576,8.0111,124.83,124.8,0.03]
[1743564779951,18.26579684,124.83,124.8,0.03]
[1743564780374,10.25469684,124.82,124.8,0.03]
[1743564780546,10.25469684,124.81,124.8,0.03]
[1743564781361,71.7443562,124.81,124.8,0.03]
[1743564781570,18.79181043,124.8,124.78,0.03]
[1743564781748,10.25469684,124.79,124.78,0.03]
[1743564782050,37.20206884,124.79,124.78,0.03]
[1743564782464,117.90206884,124.79,124.78,0.03]
[1743564782843,37.20206884,124.79,124.78,0.03]
[1743564790862,38.26809684,124.79,124.78,0.03]
[1743564791665,18.26809684,124.79,124.78,0.03]
[1743564795294,1.5369,124.81,124.78,0.03]
[1743564795459,18.79181043,124.83,124.78,0.03]
[1743564798383,8.0121,124.81,124.78,0.03]
[1743564803708,8.0121,124.81,124.78,6.3814]
[1743564804887,38.29719684,124.81,124.78,6.3814]
[1743564805092,10.25469684,124.8,124.78,0.03]
[1743564805282,18.26809684,124.79,124.78,0.03]
[1743564805588,38.26809684,124.79,124.78,0.03]
[1743564806275,28.0134,124.79,124.78,0.03]
[1743564806896,18.26769684,124.8,124.78,0.03]
[1743564807191,8.013,124.8,124.78,0.03]
[1743564808589,18.26679684,124.81,124.78,0.03]
[1743564809187,8.0121,124.81,124.78,0.03]
[1743564810616,18.26679684,124.81,124.78,0.03]
[1743564811917,8.0121,124.81,124.78,0.03]
[1743564812096,88.7748,124.82,124.78,6.95]
[1743564812498,80.763,124.82,124.78,6.95]
[1743564812697,0.063,124.82,124.78,14.9638]
[1743564814621,0.063,124.82,124.78,6.95]
[1743564814810,10.31769684,124.82,124.78,6.95]
[1743564815618,0.063,124.82,124.78,14.9638]
[1743564815988,0.063,124.82,124.79,8.134]
[1743564816516,0.063,124.82,124.79,6.6283]
[1743564816700,8.0745,124.82,124.79,6.6283]
[1743564817299,0.063,124.82,124.79,6.6283]
[1743564819297,0.063,124.82,124.78,6.95]
[1743564822921,10.31769684,124.82,124.78,6.95]
[1743564823624,8.0121,124.81,124.78,6.95]
[1743564825716,8.0745,124.82,124.78,6.95]
[1743564828212,0.063,124.82,124.78,14.9639]
[1743564829524,0.063,124.82,124.78,6.95]
[1743564839232,0.063,124.82,124.78,14.9637]
[1743564843244,0.063,124.82,124.79,18.64964886]
[1743564844147,0.063,124.82,124.78,14.9637]
[1743564844347,0.063,124.82,124.79,18.64964886]
[1743564844548,0.063,124.82,124.78,6.95]
[1743564844865,11.96959684,124.82,124.78,0.03]
[1743564845244,1.7149,124.82,124.78,0.03]
[1743564845753,0.063,124.82,124.78,0.03]
[1743564847648,10.31769684,124.82,124.78,0.03]
[1743564847847,10.25469684,124.8,124.78,0.03]
[1743564849058,8.0134,124.79,124.78,0.03]
[1743564855465,8.0747,124.82,124.78,0.03]
[1743564855678,8.0747,124.82,124.79,6.92]
[1743564855855,0.063,124.82,124.79,6.92]
[1743564856663,0.063,124.82,124.79,14.9333]
[1743564857767,0.063,124.82,124.8,18.64964886]
[1743564861548,0.063,124.82,124.8,26.66214886]
[1743564866478,0.063,124.82,124.8,33.20659498]
[1743564866680,0.063,124.82,124.81,6.44122314]
[1743564868079,0.063,124.82,124.81,14.45332314]
[1743564870683,0.063,124.82,124.81,14.169]
[1743564870887,0.063,124.82,124.81,32.81864886]
[1743564871184,0.063,124.82,124.79,80.93]
[1743564871369,0.063,124.82,124.79,0.03]
[1743564871566,0.063,124.82,124.79,6.95]
[1743564871773,0.063,124.82,124.79,0.03]
[1743564873088,8.0745,124.82,124.79,0.03]
[1743564875272,8.0745,124.82,124.8,0.03]
[1743564877199,10.25469684,124.81,124.8,0.03]
[1743564877403,11.85689684,124.81,124.8,0.03]
[1743564877691,19.86899684,124.81,124.8,0.03]
[1743564879101,9.6143,124.81,124.8,0.03]
[1743564882631,8.0747,124.82,124.8,0.03]
[1743564882830,0.063,124.82,124.8,0.03]
[1743564884934,0.063,124.82,124.8,6.95]
[1743564887331,10.31769684,124.82,124.8,0.03]
[1743564889334,18.26679684,124.81,124.8,0.03]
[1743564889904,8.0121,124.81,124.8,0.03]
[1743564890618,80.7,124.8,124.79,0.03]
[1743564890799,80.7,124.79,124.78,0.03]
[1743564891000,90.95469684,124.79,124.78,0.03]
[1743564891541,98.96809684,124.79,124.78,0.03]
[1743564891844,137.93566884,124.79,124.73,0.03]
[1743564892129,10.25469684,124.77,124.73,0.03]
[1743564893221,90.95469684,124.78,124.73,0.03]
[1743564894345,8.0147,124.77,124.73,0.03]
[1743564900539,10.25469684,124.75,124.73,0.03]
[1743564900743,10.25469684,124.74,124.73,0.03]
[1743564902343,18.27129684,124.74,124.73,0.03]
[1743564902851,37.20526884,124.74,124.73,0.03]
[1743564903208,37.20526884,124.74,124.72,0.03]
[1743564903440,35.58636884,124.73,124.72,0.0001]
[1743564904438,43.60366884,124.73,124.72,0.0001]
[1743564905750,49.4047337,124.73,124.72,0.0001]
[1743564907840,40.496572,124.71,124.7,0.03]
[1743564908036,18.933972,124.7,124.68,1.1523902]
[1743564908222,16.0557617,124.69,124.68,1.1523902]
[1743564909048,24.0755617,124.69,124.68,1.1523902]
[1743564911122,24.0755617,124.69,124.68,1.1823902]
[1743564915457,8.0198,124.69,124.68,1.1823902]
[1743564915640,24.0755617,124.69,124.68,1.1823902]
[1743564920158,8.0198,124.69,124.68,1.1823902]
[1743564925351,24.0755617,124.69,124.68,1.1823902]
[1743564925748,18.29687881,124.69,124.68,1.1823902]
[1743564926663,8.0198,124.69,124.68,1.1823902]
[1743564927972,18.29687881,124.69,124.68,1.1823902]
[1743564930747,88.7193,124.7,124.68,1.1823902]
[1743564930956,80.7,124.7,124.68,1.1823902]
[1743564931147,88.7193,124.7,124.68,1.1823902]
[1743564932178,8.0193,124.7,124.68,1.1823902]
[1743564934574,8.0823,124.7,124.68,1.1823902]
[1743564934768,0.063,124.7,124.68,1.1823902]
[1743564944055,0.063,124.7,124.68,9.2027902]
[1743564944780,0.063,124.7,124.68,1.1823902]
[1743564945991,8.0198,124.69,124.68,1.1823902]
[1743564948690,18.29687881,124.69,124.68,1.1823902]
[1743564950790,8.0198,124.69,124.68,1.1823902]
[1743564950993,10.34007881,124.7,124.68,1.1823902]
[1743564950994,8.0825,124.7,124.68,1.1823902]
[1743564953701,10.27707881,124.69,124.68,1.1823902]
[1743564954993,18.29687881,124.69,124.68,1.1823902]
[1743564956985,37.23085081,124.69,124.68,1.1823902]
[1743564957374,37.23085081,124.69,124.68,9.02e-05]
[1743564961817,18.933972,124.68,124.67,9.02e-05]
[1743564962006,70.31936605,124.68,124.67,9.02e-05]
[1743564962818,219.85986605,124.68,124.67,9.02e-05]
[1743564963001,20.0,124.66,124.65,9.02e-05]
[1743564963206,31.81287881,124.66,124.65,9.02e-05]
[1743564964324,153.533972,124.65,124.64,9.02e-05]
[1743564964527,163.81105081,124.65,124.64,9.02e-05]
[1743564965221,171.83345081,124.65,124.64,9.02e-05]
[1743564966821,152.89947881,124.65,124.64,9.02e-05]
[1743564967436,171.83345081,124.65,124.64,9.02e-05]
[1743564968307,18.933972,124.64,124.63,0.03]
[1743564968519,29.21105081,124.64,124.63,0.03]
[1743564969325,29.21105081,124.64,124.6,0.03]
[1743564969505,18.933972,124.62,124.6,0.03]
[1743564969706,10.27707881,124.61,124.6,0.03]
[1743564971628,18.30207881,124.61,124.6,0.03]
[1743564975813,18.30137881,124.62,124.6,0.03]
[1743564979734,10.27707881,124.61,124.6,0.03]
[1743564980135,18.30207881,124.61,124.6,0.03]
[1743564981140,8.025,124.61,124.6,0.03]
[1743564982049,10.27707881,124.61,124.6,0.03]
[1743564983340,109.91105081,124.61,124.6,0.03]
[1743564983556,30.79405081,124.61,124.55,0.03]
[1743564983720,10.27707881,124.57,124.55,30.03]
[1743564984225,18.30477881,124.57,124.55,30.03]
[1743564984621,10.27707881,124.56,124.55,30.03]
[1743564985011,90.97707881,124.56,124.55,0.03]
[1743564985432,109.91105081,124.56,124.55,0.03]
[1743564985635,132.36971719,124.56,124.55,0.03]
[1743564985825,151.01936605,124.56,124.55,0.03]
[1743564986025,159.04756605,124.56,124.55,0.03]
[1743564986232,80.7,124.56,124.55,0.03]
[1743564986414,88.7282,124.56,124.55,0.03]
[1743564986615,80.7,124.56,124.55,0.03]
[1743564986810,88.7282,124.56,124.55,0.03]
[1743564987156,80.7,124.56,124.55,0.03]
[1743564987325,90.97707881,124.56,124.55,0.03]
[1743564987513,99.00527881,124.56,124.55,0.03]
[1743564988445,80.7,124.56,124.55,0.03]
[1743564988759,18.30397881,124.58,124.55,0.03]
[1743564989122,8.0269,124.58,124.55,0.03]
[1743564989444,10.27707881,124.57,124.55,0.03]
[1743564989644,8.503,124.61,124.55,0.03]
[1743564989645,0.063,124.63,124.58,20.0]
[1743564989822,0.063,124.63,124.59,6.94]
[1743564989823,18.36397881,124.63,124.59,6.94]
[1743564990151,10.27707881,124.61,124.59,6.94]
[1743564990651,18.30267881,124.61,124.59,6.94]
[1743564991221,10.27707881,124.6,124.57,6.328]
[1743564991725,16.08083613,124.6,124.57,6.328]
[1743564992551,8.0263,124.59,124.57,6.328]
[1743564994647,24.10673613,124.6,124.57,6.328]
[1743564995156,8.0259,124.6,124.57,6.328]
[1743564996045,8.0889,124.6,124.57,6.328]
[1743564998553,0.063,124.6,124.57,6.328]
[1743565000970,16.14383613,124.6,124.56,6.97]
[1743565001763,0.063,124.6,124.56,6.97]
[1743565002277,0.063,124.6,124.56,14.9981]
[1743565003075,16.08083613,124.58,124.56,0.03]
[1743565004574,8.0276,124.57,124.56,0.03]
[1743565004762,24.10843613,124.57,124.56,0.03]
[1743565004961,43.04240813,124.57,124.56,0.03]
[1743565006264,24.10843613,124.57,124.56,0.03]
[1743565009064,8.0276,124.57,124.56,0.03]
[1743565009374,8.0269,124.58,124.56,0.03]
[1743565012794,96.78083613,124.59,124.56,0.03]
[1743565012795,80.7,124.59,124.56,0.03]
[1743565012960,80.7,124.59,124.56,6.3719]
[1743565014261,88.7264,124.59,124.56,6.3719]
[1743565026102,10.29142753,124.58,124.56,0.03]
[1743565027193,8.0276,124.57,124.56,0.03]
[1743565030498,18.31902753,124.57,124.56,0.03]
[1743565035188,10.29142753,124.56,124.55,0.03]
[1743565035498,99.01962753,124.56,124.55,0.03]
[1743565036603,88.7282,124.56,124.55,0.03]
[1743565038811,88.7282,124.56,124.51,30.0]
[1743565038812,0.28432314,124.55,124.51,30.0]
[1743565039023,10.29142753,124.53,124.51,30.0]
[1743565039193,90.99142753,124.54,124.51,30.0]
[1743565039690,8.0301,124.53,124.51,30.0]
[1743565041793,80.7,124.54,124.51,30.0]
[1743565041984,8.0285,124.56,124.51,38.0312]
[1743565043606,8.0285,124.56,124.51,38.0612]
[1743565043793,8.0915,124.56,124.51,38.0612]
[1743565044022,8.0915,124.56,124.51,30.03]
[1743565044300,18.38292753,124.56,124.51,30.03]
[1743565045286,10.29142753,124.55,124.51,30.03]
[1743565045486,10.29142753,124.54,124.51,30.03]
[1743565045706,10.29142753,124.55,124.51,30.03]
[1743565046604,10.35442753,124.56,124.51,30.03]
[1743565047207,8.0289,124.55,124.51,30.03]
[1743565049708,18.32032753,124.55,124.51,30.03]
[1743565051182,10.29142753,124.54,124.51,30.03]
[1743565052288,10.29142753,124.53,124.51,30.03]
[1743565052482,10.29142753,124.52,124.51,30.03]
[1743565052905,18.32152753,124.53,124.51,30.03]
[1743565054194,10.29142753,124.52,124.51,30.03]
[1743565054511,10.29142753,124.52,124.51,0.03]
[1743565055585,109.92539953,124.52,124.51,0.03]
[1743565056585,99.30655067,124.52,124.51,0.03]
[1743565056808,25.551172,124.51,124.47,30.03]
[1743565057117,82.2889,124.5,124.44,0.03]
[1743565057491,92.58032753,124.5,124.44,0.03]
[1743565057691,80.7,124.5,124.44,0.03]
[1743565058011,90.99142753,124.5,124.44,0.03]
[1743565058306,90.99142753,124.5,124.44,8.0659]
[1743565058516,10.29142753,124.49,124.44,0.03]
[1743565059315,18.32422753,124.49,124.44,0.03]
[1743565059612,10.29142753,124.48,124.44,0.03]
[1743565059781,10.29142753,124.49,124.44,0.03]
[1743565059987,90.99142753,124.5,124.44,0.03]
[1743565061322,10.29142753,124.49,124.44,0.03]
[1743565061924,10.29142753,124.47,124.44,0.03]